lending/lending_fUSD_20240202
["ID","MTS","AMOUNT","RATE_DAILY","PERIOD"]
[313165076,1706847038574,-150.0,0.00022981,2]
[313165077,1706847038583,-150.86737058,0.0002299,2]
[313165078,1706847038593,-150.0,0.00022991,2]
[313165079,1706847038602,-311.34427419,0.00022995,2]
[313165080,1706847038649,-2259.83025819,0.00022995,2]
[313165081,1706847038661,-635.96349285,0.00022995,2]
[313165082,1706847038674,-1043.51834807,0.00022995,2]
[313165083,1706847038684,-246.52944561,0.00022996,2]
[313165084,1706847038693,-296.46278445,0.00022996,2]
[313165085,1706847038702,-52823.82698019,0.00022996,2]
[313165086,1706847038711,-7862.51852477,0.00022997,2]
[313165087,1706847038721,-22698.08071508,0.00022998,2]
[313165088,1706847038730,-1269.30378883,0.00022998,2]
[313165089,1706847038739,-1386.09992671,0.00022998,2]
[313165090,1706847038749,-157.12380207,0.00022998,2]
[313165091,1706847038758,-421.91780285,0.00022998,2]
[313165092,1706847038767,-1054.39115058,0.00022998,2]
[313165093,1706847038776,-4680.35736547,0.00022998,2]
[313165094,1706847038786,-205.16335696,0.00022999,2]
[313165095,1706847038795,-150.01,0.00022999,2]
[313165096,1706847038808,-3307.40270442,0.00022999,2]
[313165097,1706847038817,-151988.19198224,0.00022999,2]
[313165098,1706847038826,-551.0,0.00023,2]
[313165099,1706847038835,-2837451.98909791,0.00023,2]
[313165100,1706847038848,-952.18918478,0.00023,2]
[313165101,1706847038859,-1015.1999988,0.00023,2]
[313165102,1706847038871,-1176151.1937142,0.00023,2]
[313165103,1706847038884,-726.28835269,0.00023,2]
[313165104,1706847038895,-741.27723955,0.00023,2]
[313165105,1706847038906,-420.8888349,0.00023,2]
[313165106,1706847038918,-926.63689892,0.00023,2]
[313165110,1706847040815,-1070.276403,0.00023,2]
[313165111,1706847040828,-312.14320097,0.00023,2]
[313165112,1706847040875,-23706.53013667,0.00023,2]
[313165113,1706847040926,-37519.2684082,0.00023,2]
[313165114,1706847040937,-320.7376266,0.00023,2]
[313165115,1706847040981,-1612.60638186,0.00023,2]
[313165116,1706847040992,-573.6568743,0.00023,2]
[313165117,1706847041038,-13649.77701796,0.00023,2]
[313165118,1706847041094,-541.05532265,0.00023,2]
[313165119,1706847041105,-529.75424505,0.00023,2]
[313165120,1706847041116,-206151.12250549,0.00023,2]
[313165121,1706847041126,-523.81525498,0.00023,2]
[313165122,1706847041135,-288.20849298,0.00023,5]
[313165123,1706847041144,-26218.60918768,0.00023,2]
[313165124,1706847041156,-9245.30500987,0.00023,2]
[313165125,1706847041168,-507.76928861,0.00023,2]
[313165126,1706847041180,-601.05792827,0.00023,2]
[313165127,1706847041194,-322.42309347,0.00023,2]
[313165139,1706847042721,-690.50527134,0.00023,2]
[313165140,1706847042830,-664.56994475,0.00023,2]
[313165141,1706847042842,-1449.54671138,0.00023,2]
[313165142,1706847042884,-21011.99395085,0.00023,2]
[313165143,1706847042941,-263.84549588,0.00023,2]
[313165144,1706847042952,-696.05985471,0.00023,2]
[313165145,1706847042998,-1515.01903168,0.00023,2]
[313165146,1706847043056,-293.33957425,0.00023,2]
[313165151,1706847045875,-150.01,0.00022999,2]
[313165152,1706847045893,-10508.5646968,0.00023,2]
[313165153,1706847045905,-1974.57483297,0.00023,2]
[313165154,1706847045925,-428.4901055,0.00022999,2]
[313165156,1706847060283,200.0,0.000223,8]
[313165157,1706847062395,500.0,0.000224,8]
[313165158,1706847064491,700.0,0.000225,8]
[313165160,1706847092683,156.46955175,0.00020699,2]
[313165162,1706847106428,3553.3309,0.000225,2]
[313165166,1706847150954,180.82,0.00019955,2]
[313165167,1706847151298,180.82,0.00022219,2]
[313165170,1706847197498,170.29,0.00021933,2]
[313165172,1706847213266,166.55,0.00021944,2]
[313165176,1706847234756,2000.0,0.0002194,2]
[313165178,1706847241594,4660.73,0.00021932,2]
[313165181,1706847299605,1169.53,0.00022173,2]
[313165182,1706847316649,1058.3,0.00021956,2]
[313165183,1706847372284,366.6,0.00021894,2]
[313165184,1706847428782,250.0,0.00021918,2]
[313165185,1706847438307,182.51,0.00022092,2]
[313165186,1706847540669,211.2,0.00021885,2]
[313165188,1706847579568,396.75,0.0002189,2]
[313165190,1706847608109,162.73,0.00020019,2]
[313165191,1706847608458,162.73,0.00022282,2]
[313165193,1706847670141,159.48,0.0002189,2]
[313165194,1706847836798,305.5,0.00021881,2]
[313165195,1706848062923,682.6,0.0002191,2]
[313165196,1706848167188,154.16,0.00019984,2]
[313165197,1706848167539,154.16,0.00022373,2]
[313165198,1706848197516,166.55,0.00021906,2]
[313165204,1706848231923,-681.75108482,0.00022518,2]
[313165205,1706848231934,-428.50808,0.00022518,2]
[313165206,1706848231948,-265.48074475,0.00022518,2]
[313165207,1706848231958,-420.65248789,0.00022519,2]
[313165208,1706848231968,-150.0,0.0002252,2]
[313165209,1706848231977,-198.0,0.00022549,2]
[313165210,1706848231986,-191.89763296,0.0002257,2]
[313165211,1706848231995,-13160.8527,0.0002267,2]
[313165212,1706848232005,-796.33889857,0.0002267,2]
[313165213,1706848232014,-7608.72106595,0.0002269,2]
[313165214,1706848232024,-72556.14123137,0.000227,2]
[313165215,1706848232038,-191.89763295,0.00022735,2]
[313165216,1706848232049,-6790.20076636,0.0002277,2]
[313165217,1706848232065,-766.07929493,0.0002277,2]
[313165218,1706848232077,-11403.62144631,0.0002277,2]
[313165219,1706848232086,-1155.843,0.0002277,2]
[313165220,1706848232095,-886.33,0.0002277,2]
[313165221,1706848232105,-757.41,0.0002277,2]
[313165222,1706848232114,-499.99,0.0002277,2]
[313165223,1706848232123,-526.22576296,0.00022798,2]
[313165224,1706848232132,-1000.0,0.00022798,2]
[313165225,1706848232142,-2500.0,0.00022798,2]
[313165226,1706848232152,-254.09,0.00022798,2]
[313165227,1706848232163,-154.97114296,0.00022798,2]
[313165228,1706848232174,-200.0,0.00022815,2]
[313165229,1706848232183,-800.0,0.00022815,2]
[313165230,1706848232193,-200.0,0.00022816,2]
[313165231,1706848232203,-800.0,0.00022816,2]
[313165232,1706848232212,-800.0,0.00022816,2]
[313165233,1706848232221,-154.97114292,0.00022824,2]
[313165234,1706848232230,-154.97114292,0.00022849,2]
[313165235,1706848232240,-154.97114292,0.00022875,2]
[313165236,1706848232251,-1000.0,0.00022885,2]
[313165237,1706848232261,-1000.0,0.00022885,2]
[313165238,1706848232270,-1000.0,0.00022885,2]
[313165239,1706848232279,-1000.0,0.00022885,2]
[313165240,1706848232288,-1000.0,0.00022885,2]
[313165241,1706848232298,-1000.0,0.00022885,2]
[313165242,1706848232307,-1000.0,0.00022885,2]
[313165243,1706848232316,-1000.0,0.00022885,2]
[313165244,1706848232325,-1000.0,0.00022885,2]
[313165245,1706848232334,-1000.0,0.00022885,2]
[313165246,1706848232344,-1000.0,0.00022885,2]
[313165247,1706848232353,-1000.0,0.00022885,2]
[313165248,1706848232362,-1000.0,0.00022885,2]
[313165249,1706848232371,-1000.0,0.00022885,2]
[313165250,1706848232381,-1000.0,0.00022885,2]
[313165251,1706848232390,-1000.0,0.00022885,2]
[313165252,1706848232399,-1000.0,0.00022885,2]
[313165253,1706848232409,-1000.0,0.00022885,2]
[313165254,1706848232419,-1000.0,0.00022885,2]
[313165255,1706848232428,-1000.0,0.00022885,2]
[313165256,1706848232438,-1000.0,0.00022885,2]
[313165257,1706848232448,-1111.1113,0.00022885,2]
[313165258,1706848232459,-431.01179888,0.00022885,2]
[313165259,1706848232473,-68.98820112,0.00022885,2]
[313165260,1706848232483,-500.0,0.00022885,2]
[313165261,1706848232492,-500.0,0.00022885,2]
[313165262,1706848232501,-500.0,0.00022885,2]
[313165263,1706848232511,-500.0,0.00022885,2]
[313165264,1706848232521,-500.0,0.00022885,2]
[313165265,1706848232531,-507.295,0.00022885,2]
[313165266,1706848232541,-205.16335696,0.00022896,2]
[313165267,1706848232551,-1269.30378883,0.00022896,2]
[313165268,1706848232562,-157.12380207,0.00022896,2]
[313165269,1706848232572,-421.91780285,0.00022896,2]
[313165270,1706848232581,-4680.35736547,0.00022896,2]
[313165271,1706848232590,-5349.18757315,0.00022896,2]
[313165272,1706848232602,-473.60372956,0.00022896,2]
[313165273,1706848232614,-279.23454538,0.00022896,2]
[313165274,1706848232625,-2350.0,0.00022896,2]
[313165286,1706848237881,-776.08928633,0.00022896,2]
[313165293,1706848237943,-13469.96558066,0.00022896,2]
[313165295,1706848237952,-1054.39115058,0.00022896,2]
[313165297,1706848237962,-7862.51852477,0.00022896,2]
[313165299,1706848237971,-246.52944561,0.00022896,2]
[313165301,1706848237981,-296.46278445,0.00022896,2]
[313165303,1706848237990,-152384.72832315,0.00022898,2]
[313165305,1706848238000,-999.4697,0.00022898,2]
[313165307,1706848238009,-143708.1474,0.00022899,2]
[313165309,1706848238018,-1000.0,0.00022899,2]
[313165311,1706848238028,-500.0,0.00022899,2]
[313165313,1706848238038,-39354.6766,0.000229,2]
[313165315,1706848238048,-82971.7262,0.000229,2]
[313165317,1706848238058,-191.89763295,0.000229,2]
[313165319,1706848238067,-154.97114292,0.000229,2]
[313165321,1706848238076,-394.66991039,0.000229,2]
[313165323,1706848238087,-526.22576295,0.000229,2]
[313165325,1706848238096,-231.47916104,0.00022998,2]
[313165327,1706848238106,-3505.61156503,0.00022999,2]
[313165329,1706848238116,-151.69873586,0.00022999,2]
[313165331,1706848238126,-3307.40270442,0.00022999,2]
[313165333,1706848238135,-554.0,0.00023,2]
[313165335,1706848238145,-2633683.79710336,0.00023,2]
[313165337,1706848238159,-36582.06637457,0.00023,2]
[313165339,1706848238173,-12650.1003,0.00023,2]
[313165341,1706848238189,-819.54426237,0.00023,2]
[313165342,1706848238202,-521.05461648,0.00023,2]
[313165343,1706848238213,-785.44914221,0.00023,2]
[313165344,1706848238229,-279.39887565,0.00023,2]
[313165345,1706848238242,-342.79972744,0.00023,2]
[313165346,1706848238253,-2039.91657473,0.00023,2]
[313165379,1706848240427,-349.79036536,0.00022897,2]
[313165380,1706848240485,-61.50294909,0.00022897,2]
[313165381,1706848240498,-325.41284604,0.00022999,2]
[313165382,1706848240595,-2981.98985838,0.00022999,2]
[313165383,1706848240605,-17360.51770694,0.00023,2]
[313165384,1706848241303,-6606.55426422,0.00023,2]
[313165385,1706848241361,-3068.15372656,0.00023,2]
[313165404,1706848242953,-381.87407514,0.00023,2]
[313165405,1706848243065,-396397.76979963,0.00023,2]
[313165406,1706848243877,-353.659,0.00023,2]
[313165441,1706848245897,-150.01,0.00022999,2]
[313165442,1706848245907,-3307.40270442,0.00022999,2]
[313165443,1706848245916,-3468.87791939,0.00023,2]
[313165444,1706848245928,-382.98981488,0.00023,2]
[313165445,1706848245957,-390.01231964,0.00023,2]
[313165446,1706848245969,-783.48549942,0.00023,2]
[313165447,1706848245980,-1423.82121865,0.00023,2]
[313165448,1706848246014,-194410.44130464,0.00023,2]
[313165449,1706848246025,-14072.50495924,0.00023,2]
[313165450,1706848246134,-466.70474391,0.00023,2]
[313165451,1706848246191,-1764.77242089,0.00023,2]
[313165452,1706848246250,-709.07093086,0.00023,2]
[313165469,1706848265140,289.20375905,0.00021906,2]
[313165470,1706848272562,184.05,0.00020728,2]
[313165471,1706848276979,2673.59845234,0.00021906,2]
[313165472,1706848281792,927.77386041,0.00022273,2]
[313165473,1706848292934,1782.39896823,0.00021906,2]
[313165474,1706848312935,1485.33247352,0.00021906,2]
[313165475,1706848324239,215.0,0.00022,2]
[313165476,1706848331129,773.8582187,0.00022,2]
[313165477,1706848346932,773.8582187,0.00022,2]
[313165478,1706848362947,773.8582187,0.00022,2]
[313165479,1706848387182,773.8582187,0.00022,2]
[313165480,1706848405174,773.8582187,0.00022,2]
[313165481,1706848423192,773.8582187,0.00022,2]
[313165482,1706848443181,773.8582187,0.00022,2]
[313165483,1706848469269,773.8582187,0.00022,2]
[313165484,1706848482410,1654.28,0.00022143,2]
[313165485,1706848487201,773.8582187,0.00022,2]
[313165486,1706848498065,453.92,0.00022088,2]
[313165487,1706848499271,1346.64,0.00022088,2]
[313165488,1706848510444,773.8582187,0.00022,2]
[313165489,1706848526465,773.8582187,0.00022,2]
[313165490,1706848548452,399.55443543,0.00022,2]
[313165491,1706848620726,153.59,0.00020168,2]
[313165492,1706848621060,153.59,0.00022432,2]
[313165493,1706848701802,150.813905,0.000225,2]
[313165494,1706848750830,168.92,0.00022339,2]
[313165495,1706848754086,170.21,0.00022174,2]
[313165496,1706848821906,348.92,0.00022164,2]
[313165497,1706849013272,636.86,0.00022167,2]
[313165498,1706849014779,927.77386042,0.00022477,2]
[313165499,1706849118321,166.55,0.00022244,2]
[313165500,1706849178422,159.48,0.00022222,2]
[313165501,1706849215722,153.59,0.00020338,2]
[313165502,1706849291025,290.76,0.00021769,2]
[313165510,1706849432003,-420.65248789,0.00022597,2]
[313165512,1706849432013,-191.16711332,0.00022598,2]
[313165514,1706849432023,-421.67990345,0.00022643,2]
[313165515,1706849432031,-1010.77539747,0.00022644,2]
[313165516,1706849432071,-150.0,0.00022644,2]
[313165517,1706849432084,-150.0,0.00022644,2]
[313165518,1706849432093,-383.76295695,0.00022645,2]
[313165519,1706849434124,-823.48229105,0.00022645,2]
[313165520,1706849434136,-41915.50457819,0.00022645,2]
[313165521,1706849434180,-6236.57446842,0.00022645,2]
[313165522,1706849434192,-455.87090641,0.00022645,2]
[313165523,1706849434239,-590.47055933,0.00022645,2]
[313165524,1706849434298,-250.19404164,0.00022645,2]
[313165528,1706849438058,-9225.63767625,0.00022645,2]
[313165529,1706849438123,-1503.88522232,0.00022645,2]
[313165530,1706849438172,-377.44548477,0.00022645,2]
[313165531,1706849438229,-94014.80888284,0.00022645,2]
[313165532,1706849438239,-526.22576295,0.00022698,2]
[313165533,1706849438250,-154.97114292,0.00022698,2]
[313165534,1706849438260,-1005.38769873,0.00022711,2]
[313165535,1706849438269,-3505.61156503,0.00022796,2]
[313165536,1706849438279,-1043.51834807,0.00022796,2]
[313165537,1706849438288,-246.52944561,0.00022796,2]
[313165538,1706849438299,-7862.51852477,0.00022796,2]
[313165539,1706849438310,-296.46278445,0.00022796,2]
[313165540,1706849438320,-1054.39115058,0.00022796,2]
[313165541,1706849438330,-8286.4989,0.00022796,2]
[313165542,1706849438340,-74331.1481,0.00022798,2]
[313165543,1706849438350,-13735.3691,0.00022798,2]
[313165544,1706849438359,-100000.0,0.00022798,2]
[313165545,1706849438369,-500.0,0.00022798,2]
[313165546,1706849438378,-827.7229,0.00022798,2]
[313165547,1706849438388,-800.0,0.00022816,2]
[313165548,1706849438398,-1000.0,0.00022821,2]
[313165549,1706849438408,-153.59,0.00022868,2]
[313165550,1706849438417,-1000.0,0.000229,2]
[313165551,1706849438427,-999.4697,0.000229,2]
[313165552,1706849438437,-157.28459607,0.000229,2]
[313165553,1706849438447,-191.16711331,0.000229,2]
[313165554,1706849438457,-231.47916104,0.00022998,2]
[313165555,1706849438467,-1385.43065436,0.00022999,2]
[313165556,1706849438476,-3307.40270442,0.00022999,2]
[313165557,1706849438487,-151.69873586,0.00022999,2]
[313165558,1706849438497,-1006.9362,0.00022999,2]
[313165560,1706849438507,-350.36534944,0.00022999,10]
[313165562,1706849438517,-549.0,0.00023,2]
[313165563,1706849438526,-2755448.9336751,0.00023,2]
[313165564,1706849438542,-16789.3508033,0.00023,2]
[313165565,1706849438554,-65865.42504414,0.00023,2]
[313165566,1706849438566,-2888.88628797,0.00023,2]
[313165567,1706849438582,-11062.08022199,0.00023,2]
[313165568,1706849438594,-53540.18487805,0.00023,2]
[313165569,1706849438605,-1766.9567314,0.00023,2]
[313165572,1706849441287,-353.65999998,0.00022796,2]
[313165573,1706849441562,-158.22714419,0.00022796,2]
[313165574,1706849441572,-184.35499705,0.00023,2]
[313165575,1706849441618,-495.3831224,0.00023,2]
[313165576,1706849441631,-24977.30094521,0.00023,2]
[313165586,1706849443130,-3790.08789012,0.00023,2]
[313165587,1706849443318,-601.317464,0.00023,2]
[313165588,1706849443436,-4651.81942861,0.00023,2]
[313165598,1706849446120,-327.0329122,0.00022796,2]
[313165599,1706849446130,-63.58217733,0.00022999,2]
[313165600,1706849446176,-357.07031056,0.00022999,2]
[313165601,1706849446185,-550.0,0.00023,2]
[313165602,1706849446194,-193503.37099408,0.00023,2]
[313165603,1706849446232,-1994.24071057,0.00023,2]
[313165604,1706849446243,-2722.90392074,0.00023,2]
[313165605,1706849446345,-1412.63595467,0.00023,2]
[313165606,1706849446404,-429.80902332,0.00023,2]
[313165607,1706849446416,-1858.16150761,0.00023,2]
[313165609,1706849456855,3199.69692174,0.00022079,2]
[313165610,1706849478870,365.93625698,0.00022078,2]
[313165611,1706849510452,1202.70174927,0.00022449,2]
[313165616,1706849637956,1202.70174927,0.00022431,2]
[313165617,1706849657988,153.48,0.00020871,2]
[313165618,1706849806852,270.16,0.00022453,2]
[313165619,1706849829934,500.0,0.0002248,2]
[313165623,1706849917077,276.72,0.00022487,2]
[313165624,1706849937318,1318.007024,0.00022,2]
[313165625,1706849944360,509.49,0.00022397,2]
[313165626,1706849979609,917.9,0.00022454,2]
[313165627,1706849988787,1055.06,0.00022395,2]
[313165628,1706850065261,165.04,0.00022491,2]
[313165629,1706850084991,153.48,0.00020407,2]
[313165630,1706850108550,166.55,0.00022277,2]
[313165631,1706850223314,717.3,0.00022385,2]
[313165632,1706850244493,225.13,0.00022453,2]
[313165633,1706850258786,1202.70174927,0.00022494,2]
[313165637,1706850367800,592.4,0.00022428,2]
[313165638,1706850436599,159.48,0.00022497,2]
[313165641,1706850540752,153.48,0.00020569,2]
[313165648,1706850632191,-420.65248789,0.0002251,2]
[313165649,1706850632202,-169.28986,0.00022511,2]
[313165650,1706850632211,-169.28986,0.00022511,2]
[313165651,1706850632221,-178.52195081,0.00022596,2]
[313165652,1706850632231,-370.2704,0.00022598,2]
[313165653,1706850632241,-2500.0,0.00022598,2]
[313165654,1706850632250,-150.0,0.00022695,2]
[313165655,1706850632259,-4036.19953067,0.00022696,2]
[313165656,1706850632349,-8134.70363182,0.00022696,2]
[313165657,1706850632508,-2886.58443646,0.00022696,2]
[313165661,1706850638375,-18545.62168277,0.00022696,2]
[313165662,1706850638386,-5751.56731828,0.00022696,2]
[313165663,1706850638396,-68534.0306,0.00022696,2]
[313165664,1706850638405,-152635.9146,0.00022698,2]
[313165665,1706850638415,-17662.13512556,0.000227,2]
[313165666,1706850638424,-1013.0,0.000227,2]
[313165667,1706850638433,-1970.0,0.000227,2]
[313165668,1706850638442,-407.7,0.000228,2]
[313165669,1706850638452,-1301.5,0.00022816,2]
[313165670,1706850638461,-800.0,0.00022816,2]
[313165671,1706850638470,-499.99,0.000229,2]
[313165672,1706850638480,-453.91,0.000229,2]
[313165673,1706850638489,-157.28459607,0.000229,2]
[313165674,1706850638498,-1050.0,0.000229,2]
[313165675,1706850638507,-3338.37650623,0.00022998,2]
[313165676,1706850638517,-171.88977379,0.00022999,2]
[313165677,1706850638527,-339.91551764,0.00022999,2]
[313165678,1706850638537,-3307.40270442,0.00022999,2]
[313165679,1706850638546,-2241.19370857,0.00022999,2]
[313165680,1706850638555,-2493813.12322454,0.00023,2]
[313165681,1706850638580,-285.49172499,0.00023,2]
[313165682,1706850638592,-421.953751,0.00023,2]
[313165684,1706850638605,-1299.53040327,0.00023,2]
[313165690,1706850641555,-40000.0,0.00023,2]
[313165691,1706850641578,-51178.67881734,0.00023,2]
[313165713,1706850643236,-266.32427519,0.000229,2]
[313165715,1706850643246,-163.55572481,0.00023,2]
[313165717,1706850643348,-3569.12017158,0.00023,2]
[313165718,1706850643454,-4735.03130832,0.00023,2]
[313165719,1706850643563,-500.0,0.00023,2]
[313165747,1706850646283,-12789.63225071,0.00023,2]
[313165748,1706850646341,-2329.17685,0.00023,2]
[313165749,1706850646398,-193503.37099408,0.00023,2]
[313165750,1706850646456,-318.62652592,0.00023,2]
[313165751,1706850646512,-425.58743,0.00023,2]
[313165752,1706850646581,-405.81528365,0.00023,2]
[313165760,1706851447883,153.48,0.00020741,2]
[313165761,1706851533868,213.0,0.000225,2]
[313165765,1706851631024,151.46,0.000225,2]
[313165774,1706851831410,-187.6,0.0002264,2]
[313165776,1706851831420,-358.57010319,0.00022652,2]
[313165777,1706851831429,-420.65248789,0.00022653,2]
[313165778,1706851831438,-159.48,0.00022656,2]
[313165779,1706851831450,-871.11,0.00022681,2]
[313165780,1706851831459,-634.02104241,0.00022688,2]
[313165781,1706851831470,-368.56636651,0.00022746,2]
[313165782,1706851831490,-157.51363349,0.00022746,2]
[313165783,1706851831499,-225.15224367,0.00022768,4]
[313165784,1706851831508,-800.0,0.00022816,2]
[313165785,1706851831518,-117.33412284,0.0002288,2]
[313165786,1706851831530,-280.24516117,0.0002288,2]
[313165787,1706851831542,-710.61498586,0.0002288,2]
[313165788,1706851831582,-2275.6,0.0002288,2]
[313165810,1706851837482,-392.73546608,0.0002288,2]
[313165811,1706851837494,-429.564132,0.0002288,2]
[313165812,1706851837506,-1311184.98481374,0.0002288,2]
[313165813,1706851837515,-7190.6008,0.00022899,2]
[313165814,1706851837524,-1301.5,0.00022899,2]
[313165815,1706851837536,-157.28459607,0.000229,2]
[313165816,1706851837545,-453.91,0.000229,2]
[313165817,1706851837555,-407.7,0.000229,2]
[313165818,1706851837564,-1050.0,0.000229,2]
[313165819,1706851837574,-78790.6020472,0.00022997,2]
[313165820,1706851837584,-499.99,0.00022997,2]
[313165821,1706851837594,-562.4596111,0.00022997,2]
[313165822,1706851837603,-171.88977379,0.00022998,2]
[313165823,1706851837613,-2241.19370857,0.00022998,2]
[313165824,1706851837623,-3338.37650623,0.00022998,2]
[313165825,1706851837633,-3307.40270442,0.00022999,2]
[313165826,1706851837643,-115007.95597677,0.00023,2]
[313165827,1706851837652,-985199.43549337,0.00023,2]
[313165828,1706851837664,-1367.27393774,0.00023,2]
[313165829,1706851837678,-9016.65950787,0.00023,2]
[313165830,1706851837709,-42978.444175,0.00023,2]
[313165849,1706851840725,-356.99633322,0.00022999,2]
[313165850,1706851840833,-1301.10073228,0.00022999,2]
[313165851,1706851840941,-260.72695755,0.00022999,2]
[313165859,1706851842472,-1388.57868137,0.00022999,2]
[313165860,1706851842481,-1741.56274198,0.00023,2]
[313165861,1706851842526,-628.05384491,0.00023,2]
[313165862,1706851842583,-429.3413207,0.00023,2]
[313165863,1706851842635,-343.52500915,0.00023,2]
[313165864,1706851842690,-937.480368,0.00023,2]
[313165865,1706851842709,-836.39147061,0.00023,2]
[313165866,1706851842744,-1560.0,0.00023,2]
[313165879,1706851845496,-419.70152424,0.00022999,2]
[313165881,1706851845506,-214.00847076,0.00023,2]
[313165882,1706851845519,-862.563003,0.00023,2]
[313165883,1706851845530,-1158.10832356,0.00023,2]
[313165884,1706851845550,-789.77456836,0.00023,2]
[313165885,1706851845564,-847.6,0.00023,2]
[313165886,1706851845575,-1500.0,0.00023,2]
[313165887,1706851845607,-193503.37099408,0.00023,2]
[313165888,1706851845618,-2152.46439114,0.00023,2]
[313165889,1706851845664,-868.43172369,0.00023,2]
[313165890,1706851845675,-4000.0,0.00023,2]
[313165891,1706851845720,-974.15576218,0.00023,2]
[313165892,1706851845732,-14250.81326404,0.00023,2]
[313165897,1706852119601,207.45257449,0.00022462,2]
[313165898,1706852128860,169.11,0.00022329,2]
[313165899,1706852135122,150.0,0.00022474,2]
[313165900,1706852161732,579.13,0.00022463,2]
[313165901,1706852241150,156.33,0.00022392,2]
[313165905,1706852307314,153.48,0.00020449,2]
[313165906,1706852575559,536.69,0.00022333,2]
[313165907,1706852591246,200.0,0.00022153,2]
[313165908,1706852591629,200.0,0.00022154,2]
[313165909,1706852594123,800.0,0.00022153,2]
[313165910,1706852594475,800.0,0.00022154,2]
[313165911,1706852594848,800.0,0.00022154,2]
[313165915,1706852718273,156.33,0.0002238,2]
[313165916,1706852741878,398.59,0.0002228,2]
[313165917,1706852770152,166.55,0.00022339,2]
[313165918,1706852909034,1145.45749345,0.00022486,2]
[313165919,1706852942506,153.48,0.00020434,2]
[313165931,1706853031613,-358.57010319,0.00022665,2]
[313165932,1706853031622,-522.74994125,0.00022666,2]
[313165933,1706853031632,-158.92397413,0.00022669,2]
[313165934,1706853031642,-502.37114293,0.00022699,2]
[313165937,1706853031681,570.64,0.00022326,2]
[313165938,1706853031698,-315.2812933,0.00022699,2]
[313165939,1706853031737,-6177.00271935,0.00022699,2]
[313165940,1706853031748,-1000.0,0.000227,2]
[313165941,1706853031758,-89.00348422,0.00022769,2]
[313165942,1706853031769,-210.99651578,0.00022769,2]
[313165943,1706853031778,-150.0,0.00022769,2]
[313165944,1706853031787,-150.0,0.0002277,2]
[313165945,1706853031796,-38.35427693,0.0002277,2]
[313165946,1706853031808,-111.64572307,0.0002277,2]
[313165947,1706853031817,-150.0,0.0002277,2]
[313165948,1706853031826,-150.0,0.0002277,2]
[313165949,1706853031835,-150.0,0.0002277,2]
[313165950,1706853031844,-248.25628,0.0002277,2]
[313165951,1706853031853,-51.40112469,0.000228,2]
[313165952,1706853031865,-616.61648566,0.000228,2]
[313165953,1706853031878,-318.3432,0.000228,2]
[313165954,1706853031889,-1311.03908965,0.000228,2]
[313165955,1706853031899,-19950.59562988,0.0002289,2]
[313165956,1706853031908,-155.34303778,0.00022899,2]
[313165957,1706853031918,-217762.5129,0.000229,2]
[313165958,1706853031928,-1000.0,0.000229,2]
[313165959,1706853031939,-1983.0,0.000229,2]
[313165960,1706853031948,-157.28459607,0.000229,2]
[313165961,1706853031958,-453.91,0.000229,2]
[313165962,1706853031967,-394.66991039,0.000229,2]
[313165963,1706853031976,-493.15866522,0.00022987,2]
[313165964,1706853031986,-499.99,0.00022987,2]
[313165965,1706853031996,-153.72188914,0.0002299,2]
[313165966,1706853032006,-171.88977379,0.00022996,2]
[313165967,1706853032016,-1301.5,0.00022996,2]
[313165968,1706853032025,-3338.37650623,0.00022997,2]
[313165969,1706853032035,-52156.86828378,0.00022998,2]
[313165970,1706853032061,-1906.08177036,0.00022998,2]